Organisation Name,Organisation Code,Directorate/Service,Service Category Label,Service Code,Supplier Name,Supplier Reference,Payment Date,Transaction Number,Net Payments,Purpose of Spend
North West Leicestershire District Council,31UH,Housing Repairs,HRA Housing Repairs & Maintenance,HRAHRM,Timber-Link Fencing Ltd,A033297,22/06/2022,1425510,1723.00,External Contractor Payments
North West Leicestershire District Council,31UH,Housing Repairs,HRA Housing Repairs & Maintenance,HRAHRM,Timber-Link Fencing Ltd,A033297,22/06/2022,1425511,374.00,External Contractor Payments
North West Leicestershire District Council,31UH,Housing Repairs,HRA Housing Repairs & Maintenance,HRAHRM,Timber-Link Fencing Ltd,A033297,22/06/2022,1425512,1991.00,External Contractor Payments
North West Leicestershire District Council,31UH,Housing Repairs,HRA Housing Repairs & Maintenance,HRAHRM,Orbis Property Protection Ltd,A028149,22/06/2022,1425401,763.14,Contract Cleaning
North West Leicestershire District Council,31UH,Housing Repairs,HRA Housing Repairs & Maintenance,HRAHRM,Laker BMS Ltd,A031787,22/06/2022,1425404,5581.87,Contract Payments (Dws) Ext
North West Leicestershire District Council,31UH,Housing Repairs,HRA Housing Repairs & Maintenance,HRAHRM,Timber-Link Fencing Ltd,A033297,08/06/2022,1425000,1684.00,External Contractor Payments
North West Leicestershire District Council,31UH,Housing Repairs,HRA Housing Repairs & Maintenance,HRAHRM,Timber-Link Fencing Ltd,A033297,08/06/2022,1425001,1431.00,External Contractor Payments
North West Leicestershire District Council,31UH,Housing Repairs,HRA Housing Repairs & Maintenance,HRAHRM,Timber-Link Fencing Ltd,A033297,08/06/2022,1425002,425.00,External Contractor Payments
North West Leicestershire District Council,31UH,Housing Repairs,HRA Housing Repairs & Maintenance,HRAHRM,Timber-Link Fencing Ltd,A033297,08/06/2022,1425003,1015.00,External Contractor Payments
North West Leicestershire District Council,31UH,Housing Repairs,HRA Housing Repairs & Maintenance,HRAHRM,Timber-Link Fencing Ltd,A033297,08/06/2022,1425004,940.00,External Contractor Payments
North West Leicestershire District Council,31UH,Housing Repairs,HRA Housing Repairs & Maintenance,HRAHRM,Timber-Link Fencing Ltd,A033297,08/06/2022,1425005,760.00,External Contractor Payments
North West Leicestershire District Council,31UH,Housing Repairs,HRA Housing Repairs & Maintenance,HRAHRM,Emperor Scaffolding Limited,A038405,15/06/2022,1425125,825.00,General Materials
North West Leicestershire District Council,31UH,Housing Repairs,HRA Housing Repairs & Maintenance,HRAHRM,Lift & Engineering Services Ltd,A042320,15/06/2022,1425130,366.08,General Repairs
North West Leicestershire District Council,31UH,Housing Repairs,HRA Housing Repairs & Maintenance,HRAHRM,Emperor Scaffolding Limited,A038405,15/06/2022,1425132,660.00,General Materials
North West Leicestershire District Council,31UH,Housing Repairs,HRA Housing Repairs & Maintenance,HRAHRM,John Merison BMC Ltd,A001092,15/06/2022,1425133,2145.02,General Repairs
North West Leicestershire District Council,31UH,Housing Repairs,HRA Housing Repairs & Maintenance,HRAHRM,Laker BMS Ltd,A031787,15/06/2022,1425137,5464.50,Contract Payments (Dws) Ext
North West Leicestershire District Council,31UH,Corporate Director,Human Resources,HR,Redacted- Personal Data,A047524,30/06/2022,1425782,4209.65,Grants
North West Leicestershire District Council,31UH,Corporate Director,Human Resources,HR,Floodsafe Projects Limited,A047523,30/06/2022,1425783,354.00,Grants
North West Leicestershire District Council,31UH,Housing Repairs,HRA Housing Repairs & Maintenance,HRAHRM,ABCA Systems Limited,A047114,30/06/2022,1425813,4578.56,Contract Payments (Dws) Ext
North West Leicestershire District Council,31UH,Housing Repairs,HRA Housing Repairs & Maintenance,HRAHRM,ABCA Systems Limited,A047114,30/06/2022,1425817,1770.80,Contract Payments (Dws) Ext
North West Leicestershire District Council,31UH,Housing Repairs,HRA Housing Repairs & Maintenance,HRAHRM,ABCA Systems Limited,A047114,30/06/2022,1425818,2704.44,Contract Payments (Dws) Ext
North West Leicestershire District Council,31UH,Housing,HRA Housing Management,HRAHM,H M C S,A033868,22/06/2022,1425327,485.00,Legal & Professional Services
North West Leicestershire District Council,31UH,Legal & Democratic,Legal Services,LDLS,H M C S,A033874,22/06/2022,1425328,607.00,Legal & Professional Services
North West Leicestershire District Council,31UH,Finance,Financial Planning,FINPLA,Department for Communities & Local Government,A028518,22/06/2022,1425331,3110908.00,Subsidy Receipts and repayments
North West Leicestershire District Council,31UH,Finance,Financial Planning,FINPLA,Leicestershire County Council,A000950,22/06/2022,1425332,2261733.00,County Precept
North West Leicestershire District Council,31UH,Finance,Financial Planning,FINPLA,Public Works Loan Board,A001340,22/06/2022,1425333,38062.50,P.W.L.B. Loans
North West Leicestershire District Council,31UH,Finance,Exchequer Services,EXCH,Total Gas & Power,A033385,22/06/2022,1425335,16656.12,Electricity
North West Leicestershire District Council,31UH,Housing Repairs,HRA Housing Repairs & Maintenance,HRAHRM,T & S Heating Ltd,A046054,08/06/2022,1424952,4667.10,Responsive Repairs
North West Leicestershire District Council,31UH,Leisure & Culture,Cultural Services Arts & Events,CULTEV,Redacted- Personal Data,A047484,08/06/2022,1424955,800.00,Proms/Picnic in the Park
North West Leicestershire District Council,31UH,Housing Repairs,HRA Housing Repairs & Maintenance,HRAHRM,European Asbestos Services Ltd,A045507,08/06/2022,1424998,10934.78,Asbestos Surveys and Remediation
North West Leicestershire District Council,31UH,Finance,Exchequer Services,EXCH,MHR International UK Ltd,A045150,29/06/2022,1425555,6989.50,Computing
North West Leicestershire District Council,31UH,Housing,HRA Housing Management,HRAHM,H M C S,A033868,29/06/2022,1425559,355.00,Legal & Professional Services
North West Leicestershire District Council,31UH,Finance,Exchequer Services,EXCH,ESPO,A000958,29/06/2022,1425560,11459.50,Gas
North West Leicestershire District Council,31UH,Finance,Exchequer Services,EXCH,MHR International UK Ltd,A045150,29/06/2022,1425807,373.06,Computing
North West Leicestershire District Council,31UH,Finance,Exchequer Services,EXCH,DVLA,A042250,22/06/2022,1425541,580.00,Licences - Road Fund Licence
North West Leicestershire District Council,31UH,Finance,Exchequer Services,EXCH,DVLA,A042250,22/06/2022,1425542,882.50,Licences - Road Fund Licence
North West Leicestershire District Council,31UH,Finance,Exchequer Services,EXCH,DVLA,A042250,22/06/2022,1425543,1967.50,Licences - Road Fund Licence
North West Leicestershire District Council,31UH,Finance,Exchequer Services,EXCH,RMI,A042250,22/06/2022,1425543,695.00,MOT Tester Training
North West Leicestershire District Council,31UH,Finance,Exchequer Services,EXCH,Wayfair,A042250,22/06/2022,1425543,394.02,Furniture
North West Leicestershire District Council,31UH,Finance,Exchequer Services,EXCH,DVLA,A042250,22/06/2022,1425544,3102.50,Licences - Road Fund Licence
North West Leicestershire District Council,31UH,Finance,Exchequer Services,EXCH,Policy Foresight Ltd,A042250,22/06/2022,1425544,250.00,External Training Course
North West Leicestershire District Council,31UH,Finance,Exchequer Services,EXCH,Technique Learning,A042250,22/06/2022,1425544,845.00,External Training Course
North West Leicestershire District Council,31UH,Finance,Exchequer Services,EXCH,Gazeboshop,A042250,22/06/2022,1425544,272.08,Event Expenditure
North West Leicestershire District Council,31UH,Finance,Exchequer Services,EXCH,DVLA,A042250,22/06/2022,1425545,637.50,Licences - Road Fund Licence
North West Leicestershire District Council,31UH,Finance,Exchequer Services,EXCH,Halfords Online,A042250,22/06/2022,1425545,385.83,PCC Early Intervention Expenditure
North West Leicestershire District Council,31UH,Finance,Exchequer Services,EXCH,Amazon  ,A042250,22/06/2022,1425545,599.00,PCC Early Intervention Expenditure
North West Leicestershire District Council,31UH,Finance,Exchequer Services,EXCH,DVLA,A042250,22/06/2022,1425546,1110.00,Licences - Road Fund Licence
North West Leicestershire District Council,31UH,Finance,Exchequer Services,EXCH,Rhino-Racks.co.uk,A042250,22/06/2022,1425546,329.17,Operational Purchases
North West Leicestershire District Council,31UH,Finance,Exchequer Services,EXCH,British Nordic Walking,A042250,22/06/2022,1425546,445.00,External Training Course
North West Leicestershire District Council,31UH,Finance,Exchequer Services,EXCH,Tom Toon and Daughters,A042250,22/06/2022,1425547,433.33,Operational Purchases
North West Leicestershire District Council,31UH,Finance,Exchequer Services,EXCH,BIGDUG,A042250,22/06/2022,1425547,884.97,Operational Purchases
North West Leicestershire District Council,31UH,Finance,Exchequer Services,EXCH,Industrial Washers,A042250,22/06/2022,1425548,1233.28,Operational Purchases
North West Leicestershire District Council,31UH,Finance,Exchequer Services,EXCH,"Westminster Energy, Environment  and Transport Forum",A042250,22/06/2022,1425548,420.00,Seminar Booking
North West Leicestershire District Council,31UH,Finance,Exchequer Services,EXCH,HSQE Ltd,A042250,22/06/2022,1425548,750.00,Training Expenses
North West Leicestershire District Council,31UH,Finance,Exchequer Services,EXCH,Pentalver Transport Ltd,A042250,22/06/2022,1425548,3275.00,Operational Purchases
North West Leicestershire District Council,31UH,Finance,Exchequer Services,EXCH,The Institution Of Engineering and Technology,A042250,22/06/2022,1425548,1596.00,Subscriptions
North West Leicestershire District Council,31UH,Finance,Exchequer Services,EXCH,DVLA,A042250,22/06/2022,1425548,9617.50,Licences - Road Fund Licence
North West Leicestershire District Council,31UH,Finance,Exchequer Services,EXCH,Severn Trent,A042250,22/06/2022,1425549,412.42,Search Fees
North West Leicestershire District Council,31UH,Finance,Exchequer Services,EXCH,Digicert,A042250,22/06/2022,1425549,413.84,Software Licences
North West Leicestershire District Council,31UH,Finance,Exchequer Services,EXCH,Severn Trent,A042250,22/06/2022,1425550,264.28,Search Fees
North West Leicestershire District Council,31UH,Finance,Exchequer Services,EXCH,Digicert,A042250,22/06/2022,1425551,370.55,Software Licences
North West Leicestershire District Council,31UH,Finance,Exchequer Services,EXCH,Digicert,A042250,22/06/2022,1425552,362.37,Software Licences
North West Leicestershire District Council,31UH,Finance,Exchequer Services,EXCH,MyCommerce,A042250,22/06/2022,1425552,659.55,Subscriptions
North West Leicestershire District Council,31UH,Street Management,Environment - Street Scene,ESS,Groundsman Tools Ltd,A030744,10/08/2022,1425393,-959.00,Grounds maintenance- Landscaping Supplies
North West Leicestershire District Council,31UH,Housing,HRA Housing Management,HRAHM,JLA Limited,A043639,22/06/2022,1425398,302.00,Cleaning & Domestic Equipment
North West Leicestershire District Council,31UH,Finance,Financial Planning,FINPLA,Hugglescote & Donington Le Heath,A038616,22/06/2022,1425498,790.50,Parish Council Payments
North West Leicestershire District Council,31UH,Finance,Exchequer Services,EXCH,Click Travel Ltd,A044308,22/06/2022,1425540,5894.86,Accomodation and Travel
North West Leicestershire District Council,31UH,Housing Repairs,HRA Housing Repairs & Maintenance,HRAHRM,Rybka,A046735,22/06/2022,1425267,5544.00,General repairs
North West Leicestershire District Council,31UH,Housing Repairs,HRA Housing Repairs & Maintenance,HRAHRM,Dalrod UK Ltd,A046051,22/06/2022,1425279,1058.04,Sewerage & Environmental
North West Leicestershire District Council,31UH,Housing Repairs,HRA Housing Repairs & Maintenance,HRAHRM,Sure Maintenance Ltd,A040460,22/06/2022,1425305,17133.20,Plumbing and Heating
North West Leicestershire District Council,31UH,Housing,HRA Housing Management,HRAHM,Willesley TARA,A007855,22/06/2022,1425341,600.00,Grants
North West Leicestershire District Council,31UH,Housing,HRA Housing Management,HRAHM,Whitwick & Thringstone TA,A045832,22/06/2022,1425342,600.00,Grants
North West Leicestershire District Council,31UH,Housing,HRA Housing Management,HRAHM,Linford & Verdon Tenants and,A011717,22/06/2022,1425343,600.00,Grants
North West Leicestershire District Council,31UH,Housing,HRA Housing Management,HRAHM,Friends of Greenhill Tenants Association,A045773,22/06/2022,1425344,600.00,Grants
North West Leicestershire District Council,31UH,Housing Repairs,HRA Housing Repairs & Maintenance,HRAHRM,RJH Building Construction Limited,A037144,22/06/2022,1425356,4400.00,Contract Payments (Dws) Ext
North West Leicestershire District Council,31UH,Housing Repairs,HRA Housing Repairs & Maintenance,HRAHRM,Morgan Lambert Limited,A045162,22/06/2022,1425384,877.80,Servicing
North West Leicestershire District Council,31UH,Housing,HRA Housing Management,HRAHM,JLA Limited,A043639,22/06/2022,1425386,442.00,Cleaning & Domestic Equipment
North West Leicestershire District Council,31UH,Finance,Exchequer Services,EXCH,Comensura Limited,A036958,22/06/2022,1425388,25686.55,Agency Staff
North West Leicestershire District Council,31UH,Housing,HRA Housing Management,HRAHM,Water Plus Limited,A044043,15/06/2022,1425146,334.30,Water Charges (Metered)
North West Leicestershire District Council,31UH,Finance,Exchequer Services,EXCH,HM Revenues & Customs,A038465,15/06/2022,1425224,648.00,Payment To Inland Revenue
North West Leicestershire District Council,31UH,Housing Repairs,HRA Housing Repairs & Maintenance,HRAHRM,European Asbestos Services Ltd,A045507,15/06/2022,1425233,11531.81,Asbestos Surveys and Remediation
North West Leicestershire District Council,31UH,Housing,HRA Housing Management,HRAHM,Redacted- Personal Data,A047494,15/06/2022,1425234,400.00,Compensation
North West Leicestershire District Council,31UH,Information Technology,ICT Services,ICT,Canon UK Ltd,A040459,15/06/2022,1425242,3822.88,Equipment Operating Leases
North West Leicestershire District Council,31UH,Information Technology,ICT Services,ICT,Canon UK Ltd,A040459,15/06/2022,1425243,881.45,Equipment Operating Leases
North West Leicestershire District Council,31UH,Information Technology,ICT Services,ICT,Canon UK Ltd,A040459,15/06/2022,1425244,383.37,Equipment Operating Leases
North West Leicestershire District Council,31UH,Information Technology,ICT Services,ICT,Canon UK Ltd,A040459,15/06/2022,1425246,1299.06,Photo Copier - Copy Charges Rental
North West Leicestershire District Council,31UH,Legal & Democratic,Legal Services,LDLS,Thomson Reuters (Professional) UK Limited,A037595,15/06/2022,1425247,1206.93,Computing
North West Leicestershire District Council,31UH,Street Management,Environment - Street Scene,ESS,Derby City Council,A042168,30/06/2022,1425568,325.00,Training Expenses
North West Leicestershire District Council,31UH,Housing,HRA Housing Management,HRAHM,PPG Architectural Coatings Ltd,A000876,30/06/2022,1425640,2280.53,Internal Decorations
North West Leicestershire District Council,31UH,Housing,HRA Housing Management,HRAHM,JLA Limited,A043639,30/06/2022,1425642,282.00,Cleaning & Domestic Equipment
North West Leicestershire District Council,31UH,Housing Repairs,HRA Housing Repairs & Maintenance,HRAHRM,Second Element Ltd,A046693,30/06/2022,1425656,407.56,Service Contracts - Premises costs
North West Leicestershire District Council,31UH,Housing Repairs,HRA Housing Repairs & Maintenance,HRAHRM,Second Element Ltd,A046693,30/06/2022,1425657,759.14,Service Contracts - Premises costs
North West Leicestershire District Council,31UH,Housing,HRA Housing Management,HRAHM,Water Plus Limited,A044043,30/06/2022,1425701,443.33,Water Charges (Metered)
North West Leicestershire District Council,31UH,Finance,Exchequer Services,EXCH,Click Travel Ltd,A044308,30/06/2022,1425702,5805.21,Accomodation and Travel
North West Leicestershire District Council,31UH,Finance,Financial Planning,FINPLA,Leicestershire County Council,A000950,15/06/2022,1425019,500.00,Added Years/Capital Cost
North West Leicestershire District Council,31UH,Legal & Democratic,Legal Services,LDLS,Sweet & Maxwell Ltd,A001611,15/06/2022,1425048,19143.36,Books & Publications
North West Leicestershire District Council,31UH,Neighbourhoods & Communities,N & C Community Safety,NACCS,Ibstock Town Cricket Club,A030838,15/06/2022,1425049,250.00,Small Grant Scheme
North West Leicestershire District Council,31UH,Neighbourhoods & Communities,N & C Community Safety,NACCS,Measham Leisure Centre,A027454,15/06/2022,1425050,289.95,Small Grant Scheme
North West Leicestershire District Council,31UH,Housing Repairs,HRA Housing Repairs & Maintenance,HRAHRM,Sure Maintenance Ltd,A040460,15/06/2022,1425067,19076.74,Plumbing and Heating
North West Leicestershire District Council,31UH,Housing Repairs,HRA Housing Repairs & Maintenance,HRAHRM,Sure Maintenance Ltd,A040460,15/06/2022,1425068,694.76,Plumbing and Heating
North West Leicestershire District Council,31UH,Housing Repairs,HRA Housing Repairs & Maintenance,HRAHRM,Sure Maintenance Ltd,A040460,15/06/2022,1425069,2877.47,Plumbing and Heating
North West Leicestershire District Council,31UH,Street Management,Environment Parks,ENOP,SUEZ Recycling and Recovery UK Ltd,A001108,15/06/2022,1425091,271.78,Tipping Charges
North West Leicestershire District Council,31UH,Housing Repairs,HRA Housing Repairs & Maintenance,HRAHRM,Dodd Group (Midlands) Limited,A036692,15/06/2022,1425097,21545.99,Electrical Inspections
North West Leicestershire District Council,31UH,Housing Repairs,HRA Housing Repairs & Maintenance,HRAHRM,Morgan Lambert Limited,A045162,15/06/2022,1425098,518.70,Servicing
North West Leicestershire District Council,31UH,Housing Repairs,HRA Housing Repairs & Maintenance,HRAHRM,Dalrod UK Ltd,A046051,15/06/2022,1425117,2268.99,Sewerage & Environmental
North West Leicestershire District Council,31UH,Housing Repairs,HRA Housing Repairs & Maintenance,HRAHRM,Dalrod UK Ltd,A046051,15/06/2022,1425118,712.42,Sewerage & Environmental
North West Leicestershire District Council,31UH,Housing Repairs,HRA Housing Repairs & Maintenance,HRAHRM,Dalrod UK Ltd,A046051,15/06/2022,1425119,907.51,Sewerage & Environmental
North West Leicestershire District Council,31UH,Housing Repairs,HRA Housing Repairs & Maintenance,HRAHRM,JLA Limited,A043639,15/06/2022,1425120,427.83,Cleaning & Domestic Equipment
North West Leicestershire District Council,31UH,Finance,Exchequer Services,EXCH,Click Travel Ltd,A044308,15/06/2022,1425121,3710.61,Accomodation and Travel
North West Leicestershire District Council,31UH,Finance,Exchequer Services,EXCH,Comensura Limited,A036958,15/06/2022,1425122,20947.35,Agency Staff
North West Leicestershire District Council,31UH,Finance,Exchequer Services,EXCH,Click Travel Ltd,A044308,15/06/2022,1425123,5686.07,Accomodation and Travel
North West Leicestershire District Council,31UH,Housing Repairs,HRA Housing Repairs & Maintenance,HRAHRM,T & S Heating Ltd,A046054,08/06/2022,1424843,2214.91,Responsive Repairs
North West Leicestershire District Council,31UH,Housing Repairs,HRA Housing Repairs & Maintenance,HRAHRM,Morgan Lambert Limited,A045162,08/06/2022,1424844,399.00,Servicing
North West Leicestershire District Council,31UH,Street Management,Environment Transport,ENOT,Digraph Transport Supplies Ltd,A000486,08/06/2022,1424870,-500.00,Repairs - Parts
North West Leicestershire District Council,31UH,Street Management,Environment Transport,ENOT,HGV Direct Ltd,A046956,08/06/2022,1424880,-300.00,Vehicle Parts and Maintenance
North West Leicestershire District Council,31UH,Housing,HRA Housing Management,HRAHM,Friends of Greenhill Tenants Association,A045773,08/06/2022,1424896,1000.00,Grants
North West Leicestershire District Council,31UH,Information Technology,ICT Services,ICT,EE Ltd (Airtime),A018592,08/06/2022,1424902,1085.16,Mobile Telephones
North West Leicestershire District Council,31UH,Information Technology,ICT Services,ICT,EE Ltd (Airtime),A018592,08/06/2022,1424903,5928.33,Mobile Telephones
North West Leicestershire District Council,31UH,Housing,HRA Housing Management,HRAHM,Redacted- Personal Data,A047482,08/06/2022,1424904,250.00,Mutual Exchange
North West Leicestershire District Council,31UH,Housing,HRA Housing Management,HRAHM,JLA Limited,A043639,08/06/2022,1424907,412.00,Cleaning & Domestic Equipment
North West Leicestershire District Council,31UH,Housing,HRA Housing Management,HRAHM,JLA Limited,A043639,08/06/2022,1424908,282.00,Cleaning & Domestic Equipment
North West Leicestershire District Council,31UH,Street Management,Environment Parks,ENOP,Allstar Business Solutions Ltd,A039425,08/06/2022,1424910,374.24,Petrol
North West Leicestershire District Council,31UH,Neighbourhoods & Communities,N & C Neighbourhoods,NACN,Coleorton Parish Council,A000382,08/06/2022,1424912,250.00,Small Grant Scheme
North West Leicestershire District Council,31UH,Property Services,Property Commercial Lettings,PROPCL,Water Plus Limited,A044043,08/06/2022,1424914,329.36,Water Charges (Metered)
North West Leicestershire District Council,31UH,Property Services,Property Facilities Management,PROPFM,Water Plus Limited,A044043,08/06/2022,1424915,464.54,Water Charges (Metered)
North West Leicestershire District Council,31UH,Property Services,Property Commercial Lettings,PROPCL,Water Plus Limited,A044043,08/06/2022,1424916,378.05,Water Charges (Metered)
North West Leicestershire District Council,31UH,Neighbourhoods & Communities,N & C Neighbourhoods,NACN,Falcon Support,A046422,08/06/2022,1424917,250.00,Grants
North West Leicestershire District Council,31UH,Neighbourhoods & Communities,N & C Neighbourhoods,NACN,Phoenix Children's Foundation,A045052,08/06/2022,1424918,496.55,Small Grant Scheme
North West Leicestershire District Council,31UH,Finance,Exchequer Services,EXCH,Click Travel Ltd,A044308,08/06/2022,1424928,8496.03,Accomodation and Travel
North West Leicestershire District Council,31UH,Finance,Exchequer Services,EXCH,Comensura Limited,A036958,08/06/2022,1424931,21363.18,Agency Staff
North West Leicestershire District Council,31UH,Housing Repairs,HRA Housing Repairs & Maintenance,HRAHRM,Sure Maintenance Ltd,A040460,30/06/2022,1425719,1926.76,Plumbing and Heating
North West Leicestershire District Council,31UH,Housing Repairs,HRA Housing Repairs & Maintenance,HRAHRM,Sure Maintenance Ltd,A040460,30/06/2022,1425720,1209.82,Plumbing and Heating
North West Leicestershire District Council,31UH,Housing Repairs,HRA Housing Repairs & Maintenance,HRAHRM,Dalrod UK Ltd,A046051,30/06/2022,1425722,655.55,Sewerage & Environmental
North West Leicestershire District Council,31UH,Housing Repairs,HRA Housing Repairs & Maintenance,HRAHRM,Dalrod UK Ltd,A046051,30/06/2022,1425723,950.00,Sewerage & Environmental
North West Leicestershire District Council,31UH,Housing Repairs,HRA Housing Repairs & Maintenance,HRAHRM,Dalrod UK Ltd,A046051,30/06/2022,1425724,748.28,Sewerage & Environmental
North West Leicestershire District Council,31UH,Housing Repairs,HRA Housing Repairs & Maintenance,HRAHRM,Dalrod UK Ltd,A046051,30/06/2022,1425725,549.14,Sewerage & Environmental
North West Leicestershire District Council,31UH,Legal & Democratic,Legal Services,LDLS,Martin Lee & Co,A030613,30/06/2022,1425726,750.00,Legal & Professional Services
North West Leicestershire District Council,31UH,Legal & Democratic,Legal Services,LDLS,Martin Lee & Co,A030613,30/06/2022,1425727,450.00,Legal & Professional Services
North West Leicestershire District Council,31UH,Legal & Democratic,Legal Services,LDLS,Browne Jacobson LLP,A042988,30/06/2022,1425728,768.30,Legal & Professional Services
North West Leicestershire District Council,31UH,Legal & Democratic,Legal Services,LDLS,Browne Jacobson LLP,A042988,30/06/2022,1425729,12639.60,Legal & Professional Services
North West Leicestershire District Council,31UH,Housing Repairs,HRA Housing Repairs & Maintenance,HRAHRM,Morgan Lambert Limited,A045162,30/06/2022,1425808,399.00,Servicing
North West Leicestershire District Council,31UH,Housing Repairs,HRA Housing Repairs & Maintenance,HRAHRM,Dalrod UK Ltd,A046051,30/06/2022,1425809,386.08,Sewerage & Environmental
North West Leicestershire District Council,31UH,Housing Repairs,HRA Housing Repairs & Maintenance,HRAHRM,Dalrod UK Ltd,A046051,30/06/2022,1425810,417.42,Sewerage & Environmental
North West Leicestershire District Council,31UH,Housing Strategy,Community - Housing Strategy,HS,FRPC Ltd,A047521,30/06/2022,1425812,339.00,Rent Deposit Scheme
North West Leicestershire District Council,31UH,Finance,Financial Planning,FINPLA,Floodsafe Projects Limited,A047522,30/06/2022,1425814,354.00,Grants
North West Leicestershire District Council,31UH,Housing,HRA Housing Management,HRAHM,I-Clean,A034116,30/06/2022,1425815,1360.00,Contract Cleaning
North West Leicestershire District Council,31UH,Finance,Financial Planning,FINPLA,Praxis Procurement Ltd,A046964,15/06/2022,1424190,31500.00,Consultants Fees
North West Leicestershire District Council,31UH,Housing,HRA Housing Management,HRAHM,Tunstall Healthcare (UK) Limited,A001701,16/06/2022,1425334,25367.65,Alarm System Telephones
North West Leicestershire District Council,31UH,Housing,HRA Older Persons Service,HRAOPS,Tunstall Healthcare (UK) Limited,A001701,30/06/2022,1424173,1850.00,Alarm System Telephones
North West Leicestershire District Council,31UH,Street Management,Environment Parks,ENOP,AG Howick Ltd,A047198,15/06/2022,1425061,5643.90,Operational Purchases
North West Leicestershire District Council,31UH,Housing,HRA Housing Management,HRAHM,Readings Property Group Ltd,A045486,15/06/2022,1425139,1000.00,Legal & Professional Services
North West Leicestershire District Council,31UH,Legal & Democratic,Member Services,LDMS,G and G Signs,A001111,15/06/2022,1425144,394.50,Signs & Notices
North West Leicestershire District Council,31UH,Housing,HRA Older Persons Service,HRAOPS,Tunstall Healthcare (UK) Limited,A001701,30/06/2022,1424913,2850.00,Alarm System Telephones
North West Leicestershire District Council,31UH,Planning & Development,Environment Planning Policy,EPP,The Landscape Partnership,A044873,08/06/2022,1424736,2817.00,Legal & Professional Services
North West Leicestershire District Council,31UH,Property Services,Property Commercial Lettings,PROPCL,John Merison BMC Ltd,A001092,08/06/2022,1424893,462.71,General Repairs
North West Leicestershire District Council,31UH,Street Management,Environment - Street Scene,ESS,Pod Point Ltd,A045298,30/06/2022,1420791,10585.25,Contract Payments (Other) Ext
North West Leicestershire District Council,31UH,Environmental Health,Environmental Health & Licensing,EEHL,Killgerm Chemicals Ltd,A000890,30/06/2022,1423164,530.00,Baits & Poisons
North West Leicestershire District Council,31UH,Street Management,Environment Waste Management,ENOWM,Richard Tongue,A047493,30/06/2022,1425784,2061.50,Operational Purchases
North West Leicestershire District Council,31UH,Information Technology,ICT Services,ICT,ACS Systems (UK) Ltd T/a ACS Office Solutions,A043447,30/06/2022,1425789,1661.00,Operational Equipment
North West Leicestershire District Council,31UH,Street Management,Environment Waste Management,ENOWM,Staysafe PPE Ltd,A046581,30/06/2022,1425797,362.60,Protective Clothing
North West Leicestershire District Council,31UH,Street Management,Environment - Street Scene,ESS,John Moore Events Hire (Furnihire),A047490,30/06/2022,1425799,278.00,Operational Equipment
North West Leicestershire District Council,31UH,Housing Repairs,HRA Housing Repairs & Maintenance,HRAHRM,RJH Building Construction Limited,A037144,08/06/2022,1424983,4400.00,Contract Payments (Dws) Ext
North West Leicestershire District Council,31UH,Street Management,Environment Waste Management,ENOWM,Reflec Signs & Graphics Ltd,A025348,08/06/2022,1424991,312.00,General Materials
North West Leicestershire District Council,31UH,Property Services,Property Facilities Management,PROPFM,ADT Fire And Security,A000021,08/06/2022,1424992,297.24,Building Security
North West Leicestershire District Council,31UH,Street Management,Environment - Street Scene,ESS,Spring Box Cleaning Ltd,A047448,08/06/2022,1424993,300.00,Contract Cleaning
North West Leicestershire District Council,31UH,Information Technology,ICT Services,ICT,Freedom Communications (UK) Ltd,A032826,08/06/2022,1424996,539.90,Telephones
North West Leicestershire District Council,31UH,Information Technology,ICT Services,ICT,dotdigital,A037038,08/06/2022,1424997,308.00,Administrative Equipment
North West Leicestershire District Council,31UH,Chief Exec,Chief Executive,CHEX,District Councils' Network,A039416,22/06/2022,1423650,2777.00,Subscriptions
North West Leicestershire District Council,31UH,Finance,Financial Planning,FINPLA,Leicestershire County Council,A000950,22/06/2022,1423964,4223.95,PCN LEVY
North West Leicestershire District Council,31UH,Street Management,Environment - Street Scene,ESS,Metric Group Ltd (Sales),A028996,22/06/2022,1424073,1619.00,Operational Equipment
North West Leicestershire District Council,31UH,Street Management,Environment Parks,ENOP,Groundsman Tools Ltd,A030744,15/06/2022,1425109,328.89,Operational Purchases
North West Leicestershire District Council,31UH,Street Management,Environment Waste Management,ENOWM,One51 ES Plastics(UK) Ltd  t/a MGB Plastics,A044595,15/06/2022,1425140,11700.00,General Materials
North West Leicestershire District Council,31UH,Information Technology,ICT Services,ICT,ACS Systems (UK) Ltd T/a ACS Office Solutions,A043447,15/06/2022,1425141,800.00,Administrative Equipment
North West Leicestershire District Council,31UH,Leisure & Culture,Sport & Physical Activity,SPA,Leicestershire County Council,A000950,15/06/2022,1425215,8737.00,Underspend of SPA Reporting 2021/22
North West Leicestershire District Council,31UH,Finance,Financial Planning,FINPLA,Praxis Procurement Ltd,A046964,15/06/2022,1425226,9750.00,Consultants Fees
North West Leicestershire District Council,31UH,Street Management,Environment Transport,ENOT,ESPO,A000958,15/06/2022,1425229,254.77,Operational Equipment
North West Leicestershire District Council,31UH,Information Technology,ICT Services,ICT,Six Degrees Technology Group Ltd,A044205,15/06/2022,1425238,29160.24,Admin Equipment - Maintenance
North West Leicestershire District Council,31UH,Corporate Director,Human Resources,HR,Mental Health First Aid England CIC,A045609,30/06/2022,1425710,2400.00,Corporate Training
North West Leicestershire District Council,31UH,Property Services,Property Commercial Lettings,PROPCL,Moira Furnace Museum Trust Ltd,A001136,30/06/2022,1425711,600.60,Contract Cleaning
North West Leicestershire District Council,31UH,Property Services,Property Commercial Lettings,PROPCL,Mather Jamie,A001059,15/06/2022,1424986,1181.37,Management Company-Service Charges
North West Leicestershire District Council,31UH,Property Services,Property Commercial Lettings,PROPCL,Mather Jamie,A001059,15/06/2022,1424987,1781.27,Management Company-Service Charges
North West Leicestershire District Council,31UH,Legal & Democratic,Electoral & Land Charges,LDELC,Leicestershire County Council,A027423,15/06/2022,1425225,2242.00,LCC Search Fees
North West Leicestershire District Council,31UH,Economic Development,Business Focus Group,BFG,Derbyshire County Council,A027541,30/06/2022,1424347,38696.28,Contributions
North West Leicestershire District Council,31UH,Housing Strategy,Community - Housing Strategy,HS,MRC Community Action,A001208,30/06/2022,1425286,560.00,Furniture
North West Leicestershire District Council,31UH,Housing,HRA Housing Management,HRAHM,MRC Community Action,A001208,30/06/2022,1425506,365.00,HRA Hardship Fund
North West Leicestershire District Council,31UH,Street Management,Environment Parks,ENOP,Groundsman Tools Ltd,A030744,10/08/2022,1425690,327.50,Operational Purchases
North West Leicestershire District Council,31UH,Environmental Health,Environmental Health & Licensing,EEHL,ABC Food Law Limited,A045672,30/06/2022,1425699,1170.00,Training Expenses
North West Leicestershire District Council,31UH,Street Management,Environment Transport,ENOT,Westbury Industrial Supplies Limited,A009933,30/06/2022,1425705,1173.34,Protective Clothing
North West Leicestershire District Council,31UH,Street Management,Environment - Street Scene,ESS,Spring Box Cleaning Ltd,A047448,30/06/2022,1425709,375.00,Contract Cleaning
North West Leicestershire District Council,31UH,Street Management,Environment Parks,ENOP,R Pochin Limited,A001313,30/06/2022,1425717,537.00,Operational Purchases
North West Leicestershire District Council,31UH,Street Management,Environment Waste Management,ENOWM,Environment Media Group Ltd,A045305,30/06/2022,1425718,616.00,Training Expenses
North West Leicestershire District Council,31UH,Finance,Financial Planning,FINPLA,Readings Property Group Ltd,A045486,15/06/2022,1424072,850.00,Legal & Professional Services
North West Leicestershire District Council,31UH,Property Services,Property Facilities Management,PROPFM,iG Surveys,A046433,15/06/2022,1424615,295.00,Legal & Professional Services
North West Leicestershire District Council,31UH,Property Services,Property Facilities Management,PROPFM,iG Surveys,A046433,15/06/2022,1424616,250.00,Legal & Professional Services
North West Leicestershire District Council,31UH,Property Services,Property Facilities Management,PROPFM,Regarde Security Ltd,A013049,15/06/2022,1425011,397.70,Security Services
North West Leicestershire District Council,31UH,Street Management,Environment Parks,ENOP,Regarde Security Ltd,A013049,15/06/2022,1425014,1241.60,Security Services
North West Leicestershire District Council,31UH,Housing Repairs,HRA Housing Repairs & Maintenance,HRAHRM,ECO Skip Hire Ltd,A041559,30/06/2022,1425266,515.00,General Repairs
North West Leicestershire District Council,31UH,Information Technology,ICT Services,ICT,Premier Paper Group,A042438,30/06/2022,1425619,956.16,Consumable Materials
North West Leicestershire District Council,31UH,Street Management,Environment Transport,ENOT,HGV Direct Ltd,A046956,30/06/2022,1425629,357.53,Vehicle Parts and Maintenance
North West Leicestershire District Council,31UH,Street Management,Environment Transport,ENOT,PR Horticultural Services Limited,A046639,30/06/2022,1425668,294.32,Scheduled Servicing - Parts
North West Leicestershire District Council,31UH,Leisure & Culture,Cultural Services Arts & Events,CULTEV,HDP Education Solutions Ltd,A041869,22/06/2022,1425253,343.00,Proms/Picnic in the Park
North West Leicestershire District Council,31UH,Corporate Director,Corporate Director,CORDI,Jeakins Weir Ltd,A047351,22/06/2022,1425255,28762.23,Contract Payments (Other) Ext
North West Leicestershire District Council,31UH,Street Management,Environment Parks,ENOP,L Neal Tree Surgery,A046372,22/06/2022,1425256,1030.00,External Contractor Payments
North West Leicestershire District Council,31UH,Street Management,Environment - Street Scene,ESS,Amazon Payments UK Ltd,A036743,22/06/2022,1425281,749.90,Operational Equipment
North West Leicestershire District Council,31UH,Property Services,Property Facilities Management,PROPFM,Fire Proof Ltd,A039911,22/06/2022,1425287,259.00,Fire Precaution Appliances
North West Leicestershire District Council,31UH,Housing,HRA Housing Management,HRAHM,James Andrews Recruitment Solutions,A036290,22/06/2022,1425336,1139.09,Agency Staff
North West Leicestershire District Council,31UH,Legal & Democratic,Legal Services,LDLS,James Andrews Recruitment Solutions,A036290,22/06/2022,1425354,270.00,Agency Staff
North West Leicestershire District Council,31UH,Corporate Director,Human Resources,HR,UK Healthcare,A047495,22/06/2022,1425363,6547.66,Employee Benefits Admin Cost
North West Leicestershire District Council,31UH,Street Management,Environment Transport,ENOT,Hako Machines Limited,A034237,22/06/2022,1425375,752.50,Operational Purchases
North West Leicestershire District Council,31UH,Street Management,Environment Transport,ENOT,Michelin Tyre Plc,A046127,22/06/2022,1425379,1495.20,Vehicle Parts and Maintenance
North West Leicestershire District Council,31UH,Street Management,Environment Transport,ENOT,Michelin Tyre Plc,A046127,22/06/2022,1425380,989.68,Vehicle Parts and Maintenance
North West Leicestershire District Council,31UH,Street Management,Environment Parks,ENOP,Taylors Buildbase,A035303,08/06/2022,1424514,507.52,Operational Purchases
North West Leicestershire District Council,31UH,Street Management,Environment Waste Management,ENOWM,Groundsman Tools Ltd,A030744,08/06/2022,1424619,295.50,General Materials
North West Leicestershire District Council,31UH,Neighbourhoods & Communities,N & C Community Safety,NACCS,D&WP,A041493,08/06/2022,1424679,2043.10,PCC Early Intervention Expenditure
North West Leicestershire District Council,31UH,Street Management,Environment Waste Management,ENOWM,European Asbestos Services Ltd,A045507,08/06/2022,1424682,1065.98,Asbestos Removal services
North West Leicestershire District Council,31UH,Information Technology,ICT Services,ICT,House on the Hill Software Ltd,A042199,08/06/2022,1424684,4640.00,Admin Equipment - Maintenance
North West Leicestershire District Council,31UH,Street Management,Environment Parks,ENOP,BPI Recycled Products,A017624,08/06/2022,1424824,773.00,Operational Purchases
North West Leicestershire District Council,31UH,Finance,Financial Planning,FINPLA,Post Office Limited,A047483,08/06/2022,1424937,1000.00,Revs & Bens expenditure funded by grants
North West Leicestershire District Council,31UH,Street Management,Environment Transport,ENOT,J F Lloyd & Sons,A000991,08/06/2022,1424940,260.00,Hire Of Operational Equipment
North West Leicestershire District Council,31UH,Leisure & Culture,Cultural Services Arts & Events,CULTEV,Helter Skelter Arts Ltd,A043059,08/06/2022,1424946,1070.00,Proms/Picnic in the Park
North West Leicestershire District Council,31UH,Leisure & Culture,Sport & Physical Activity,SPA,Optimum Performance,A042195,08/06/2022,1424951,360.00,Health and Wellbeing Training
North West Leicestershire District Council,31UH,Property Services,Property Commercial Lettings,PROPCL,Fire Proof Ltd,A039911,08/06/2022,1424953,2814.00,General Repairs
North West Leicestershire District Council,31UH,Economic Development,Business Focus Group,BFG,Stepnell Limited,A047274,22/06/2022,1425337,2250.00,Legal & Professional Services
North West Leicestershire District Council,31UH,Economic Development,Business Focus Group,BFG,Stepnell Limited,A047274,22/06/2022,1425338,9820.00,Legal & Professional Services
North West Leicestershire District Council,31UH,Economic Development,Business Focus Group,BFG,Stepnell Limited,A047274,22/06/2022,1425339,9413.60,Legal & Professional Services
North West Leicestershire District Council,31UH,Street Management,Environment Waste Management,ENOWM,Weir & Carmichael Ltd,A032788,22/06/2022,1425394,11670.75,General Materials
North West Leicestershire District Council,31UH,Corporate Director,Human Resources,HR,XpertHR,A036902,22/06/2022,1425499,980.00,Software Licences
North West Leicestershire District Council,31UH,Planning & Development,Environment Planning Policy,EPP,The Landscape Partnership,A044873,22/06/2022,1425501,360.00,Legal & Professional Services
North West Leicestershire District Council,31UH,Chief Exec,Chief Executive,CHEX,Sable Leigh Consultancy Ltd T/A SLC Rail,A042727,22/06/2022,1425502,2125.00,Consultants Fees
North West Leicestershire District Council,31UH,Chief Exec,Chief Executive,CHEX,exi,A045557,22/06/2022,1425503,4225.00,Advertising
North West Leicestershire District Council,31UH,Planning & Development,Environment - Development Control,EDC,Jeremy Benn Associates Ltd (t/a JBA Consulting),A044010,08/06/2022,1424397,1200.00,Consultants Fees
North West Leicestershire District Council,31UH,Street Management,Environment Parks,ENOP,Sunnyside Garden Centre Ltd,A029345,08/06/2022,1424438,428.96,Operational Purchases
North West Leicestershire District Council,31UH,Street Management,Environment Parks,ENOP,Sunnyside Garden Centre Ltd,A029345,08/06/2022,1424439,420.00,Operational Purchases
North West Leicestershire District Council,31UH,Street Management,Environment Parks,ENOP,Hilton Carp Sales,A045968,08/06/2022,1424512,950.00,General Repairs
North West Leicestershire District Council,31UH,Leisure & Culture,Cultural Services Arts & Events,CULTEV,Hermitage FM,A041913,08/06/2022,1424623,500.00,Proms/Picnic in the Park
North West Leicestershire District Council,31UH,Planning & Development,Environment - Development Control,EDC,Onsite Central Ltd,A041348,08/06/2022,1424686,5072.00,River Mease Expenditure
North West Leicestershire District Council,31UH,Housing,HRA Housing Management,HRAHM,James Andrews Recruitment Solutions,A036290,08/06/2022,1424821,1042.30,Agency Staff
North West Leicestershire District Council,31UH,Street Management,Environment Parks,ENOP,Kernock Park Plants,A037084,08/06/2022,1424822,2450.00,Operational Purchases
North West Leicestershire District Council,31UH,Street Management,Environment Parks,ENOP,Kernock Park Plants,A037084,08/06/2022,1424823,1650.00,Operational Purchases
North West Leicestershire District Council,31UH,Legal & Democratic,Legal Services,LDLS,James Andrews Recruitment Solutions,A036290,08/06/2022,1424825,517.50,Agency Staff
North West Leicestershire District Council,31UH,Housing,HRA Housing Management,HRAHM,Coalville Education Partnership CEP,A045129,08/06/2022,1424830,780.00,Contributions
North West Leicestershire District Council,31UH,Planning & Development,Environment - Development Control,EDC,Charnwood Borough Council,A000323,08/06/2022,1424837,37000.00,Shared Service Costs
North West Leicestershire District Council,31UH,Housing,HRA Housing Management,HRAHM,exi,A045557,08/06/2022,1424853,8542.86,Legal & Professional Services
North West Leicestershire District Council,31UH,Corporate Director,Corporate Director,CORDI,exi,A045557,08/06/2022,1424854,4987.50,Contract Payments (Other) Ext
North West Leicestershire District Council,31UH,Corporate Director,Corporate Director,CORDI,IDP (Central) Limited,A047366,08/06/2022,1424857,864.00,Contract Payments (Other) Ext
North West Leicestershire District Council,31UH,Corporate Director,Corporate Director,CORDI,IDP (Central) Limited,A047366,08/06/2022,1424858,2120.00,Contract Payments (Other) Ext
North West Leicestershire District Council,31UH,Economic Development,Business Focus Group,BFG,Perfect Circle JV Ltd,A046694,08/06/2022,1424863,19447.98,Legal & Professional Services
North West Leicestershire District Council,31UH,Street Management,Environment Transport,ENOT,Digraph Transport Supplies Ltd,A000486,08/06/2022,1424871,900.00,Repairs - Parts
North West Leicestershire District Council,31UH,Street Management,Environment Transport,ENOT,J F Lloyd & Sons,A000991,08/06/2022,1424873,260.00,Hire Of Operational Equipment
North West Leicestershire District Council,31UH,Street Management,Environment Transport,ENOT,Scarab Sweepers Limited,A001445,08/06/2022,1424877,531.23,Repairs - Parts
North West Leicestershire District Council,31UH,Street Management,Environment Transport,ENOT,Anderson Commercials Limited,A033469,08/06/2022,1424885,631.00,Mot
North West Leicestershire District Council,31UH,Street Management,Environment Transport,ENOT,Mobile Hydraulics Ltd,A001131,08/06/2022,1424887,983.56,Vehicle Parts and Maintenance
North West Leicestershire District Council,31UH,Street Management,Environment Transport,ENOT,Mobile Hydraulics Ltd,A001131,08/06/2022,1424888,611.00,Vehicle Parts and Maintenance
North West Leicestershire District Council,31UH,Street Management,Environment Transport,ENOT,Mobile Hydraulics Ltd,A001131,08/06/2022,1424889,281.47,Vehicle Parts and Maintenance
North West Leicestershire District Council,31UH,Corporate Director,Corporate Director,CORDI,Richards Design Partnership,A047399,08/06/2022,1424901,5000.00,Contract Payments (Other) Ext
North West Leicestershire District Council,31UH,Street Management,Environment Transport,ENOT,Scarab Sweepers Limited,A001445,08/06/2022,1424919,304.59,Repairs - Parts
North West Leicestershire District Council,31UH,Street Management,Environment Transport,ENOT,Scarab Sweepers Limited,A001445,08/06/2022,1424923,553.94,Repairs - Parts
North West Leicestershire District Council,31UH,Planning & Development,Environment - Development Control,EDC,United Utilities Water Ltd,A047240,08/06/2022,1424943,579.46,River Mease Expenditure
North West Leicestershire District Council,31UH,Economic Development,Business Focus Group,BFG,Arch Communications (UK) Ltd,A046458,08/06/2022,1424944,330.00,Consultants Fees
North West Leicestershire District Council,31UH,Chief Executive,Transformational Services,TS,Vitty Creative Ltd,A046506,08/06/2022,1424950,1750.00,Consultants Fees
North West Leicestershire District Council,31UH,Housing Repairs,HRA Housing Repairs & Maintenance,HRAHRM,Richard Morris Associates Ltd,A046634,22/06/2022,1421574,2550.00,Legal & Professional Services
North West Leicestershire District Council,31UH,Environmental Health,Environmental Health & Licensing,EEHL,AquaSamplers,A046538,22/06/2022,1425395,326.00,Private & Pool Water Sampling
North West Leicestershire District Council,31UH,Environmental Health,Environmental Health & Licensing,EEHL,AquaSamplers,A046538,22/06/2022,1425396,373.00,Private & Pool Water Sampling
North West Leicestershire District Council,31UH,Finance,Financial Planning,FINPLA,Mazars LLP,A045078,22/06/2022,1425515,15020.00,Audit Commision Fees - Grant Claims
North West Leicestershire District Council,31UH,Street Management,Environment Transport,ENOT,WasteParts UK Limited,A036236,22/06/2022,1425518,2380.13,Vehicle Parts and Maintenance
North West Leicestershire District Council,31UH,Chief Exec,Chief Executive,CHEX,Corstorphine & Wright (Birmingham Studio) Ltd,A044311,22/06/2022,1425519,5000.00,PRE - Public Realm Projects
North West Leicestershire District Council,31UH,Leisure & Culture,Sport & Physical Activity,SPA,Leicestershire County Council,A000950,22/06/2022,1425520,11357.00,Sports Forum Contribution
North West Leicestershire District Council,31UH,Street Management,Environment Waste Management,ENOWM,Staysafe PPE Ltd,A046581,22/06/2022,1425522,406.90,Protective Clothing
North West Leicestershire District Council,31UH,Street Management,Environment Transport,ENOT,Riverside Truck Rental Ltd,A045702,22/06/2022,1425524,5830.00,Hire Of Transport
North West Leicestershire District Council,31UH,Street Management,Environment Transport,ENOT,Riverside Truck Rental Ltd,A045702,22/06/2022,1425525,3938.00,Hire Of Transport
North West Leicestershire District Council,31UH,Street Management,Environment Transport,ENOT,Riverside Truck Rental Ltd,A045702,22/06/2022,1425526,5170.00,Hire Of Transport
North West Leicestershire District Council,31UH,Street Management,Environment Transport,ENOT,Riverside Truck Rental Ltd,A045702,22/06/2022,1425527,2448.30,Vehicle Parts and Maintenance
North West Leicestershire District Council,31UH,Street Management,Environment Transport,ENOT,WasteParts UK Limited,A036236,22/06/2022,1425528,1188.70,Vehicle Parts and Maintenance
North West Leicestershire District Council,31UH,Street Management,Environment Transport,ENOT,WasteParts UK Limited,A036236,22/06/2022,1425529,1106.00,Vehicle Parts and Maintenance
North West Leicestershire District Council,31UH,Street Management,Environment Transport,ENOT,WasteParts UK Limited,A036236,22/06/2022,1425530,565.72,Vehicle Parts and Maintenance
North West Leicestershire District Council,31UH,Street Management,Environment Transport,ENOT,WasteParts UK Limited,A036236,22/06/2022,1425531,276.50,Vehicle Parts and Maintenance
North West Leicestershire District Council,31UH,Street Management,Environment Transport,ENOT,WasteParts UK Limited,A036236,22/06/2022,1425533,306.80,Vehicle Parts and Maintenance
North West Leicestershire District Council,31UH,Finance,Financial Planning,FINPLA,Capita Business Services Ltd,A002968,15/06/2022,1417131,20000.00,Software Maintenance and Support
North West Leicestershire District Council,31UH,Property Services,Property Facilities Management,PROPFM,Shredpro,A040520,15/06/2022,1424470,336.48,Recycling Initiatives
North West Leicestershire District Council,31UH,Information Technology,ICT Services,ICT,ACS Systems (UK) Ltd T/a ACS Office Solutions,A043447,15/06/2022,1424864,600.00,Contract Payments (Other) Ext
North West Leicestershire District Council,31UH,Environmental Health,Environmental Health & Licensing,EEHL,Animal Care Services Limited,A046488,15/06/2022,1425016,2175.15,Stray Dog Service
North West Leicestershire District Council,31UH,Street Management,Environment Transport,ENOT,Mertrux Ltd,A035291,15/06/2022,1425020,451.81,Vehicle Parts and Maintenance
North West Leicestershire District Council,31UH,Planning & Development,Environment - Development Control,EDC,Haymarket Media Group,A035826,15/06/2022,1425022,4415.00,Subscriptions
North West Leicestershire District Council,31UH,Information Technology,ICT Services,ICT,Idox Software Ltd,A034157,15/06/2022,1425027,475.00,Admin Equipment - Hire/Rental
North West Leicestershire District Council,31UH,Housing Repairs,HRA Housing Repairs & Maintenance,HRAHRM,GovNet Communications,A032865,15/06/2022,1425028,650.00,Training Expenses
North West Leicestershire District Council,31UH,Housing Repairs,HRA Housing Repairs & Maintenance,HRAHRM,Castle Damp & Timber Specialists Limited,A046384,15/06/2022,1425029,1459.00,Legal & Professional Services
North West Leicestershire District Council,31UH,Corporate Director,Human Resources,HR,Health Management Ltd,A038840,15/06/2022,1425035,959.50,Medical Fees
North West Leicestershire District Council,31UH,Information Technology,ICT Services,ICT,Phoenix Software Limited,A001298,15/06/2022,1425042,155380.47,Corporate IT Licences
North West Leicestershire District Council,31UH,Neighbourhoods & Communities,N & C Community Safety,NACCS,JNE Security,A044895,15/06/2022,1425043,3300.00,PCC Early Intervention Expenditure
North West Leicestershire District Council,31UH,Leisure & Culture,Cultural Services Arts & Events,CULTEV,Field and Lawn Ltd,A042594,15/06/2022,1425044,1455.00,Coalville Christmas Decorations
North West Leicestershire District Council,31UH,Neighbourhoods & Communities,N & C Neighbourhoods,NACN,TB Sport,A047373,15/06/2022,1425047,5104.12,Contributions
North West Leicestershire District Council,31UH,Finance,Financial Planning,FINPLA,Blaby District Council,A000180,15/06/2022,1425057,23442.50,Contributions
North West Leicestershire District Council,31UH,Finance,Revenues,REVS,Capita Business Services Ltd,A002968,15/06/2022,1425064,1549.85,Computing
North West Leicestershire District Council,31UH,Street Management,Environment Transport,ENOT,Selby's Garage (Woodhouse) Ltd,A044011,15/06/2022,1425072,392.37,Hire Of Operational Equipment
North West Leicestershire District Council,31UH,Environmental Health,Environmental Health & Licensing,EEHL,Cockburn Vets Limited,A000378,15/06/2022,1425088,416.66,Vet Inspection
North West Leicestershire District Council,31UH,Corporate Director,Human Resources,HR,Starfish,A047178,15/06/2022,1425090,21860.00,Interim Support
North West Leicestershire District Council,31UH,Environmental Health,Environmental Health & Licensing,EEHL,Vivid Resourcing,A044601,15/06/2022,1425092,421.75,Agency Staff
North West Leicestershire District Council,31UH,Corporate Director,Corporate Director,CORDI,PI Group,A047356,15/06/2022,1425108,9275.00,Furniture
North West Leicestershire District Council,31UH,Street Management,Environment - Street Scene,ESS,John Merison BMC Ltd,A001092,30/06/2022,1423779,376.40,General Repairs
North West Leicestershire District Council,31UH,Street Management,Environment Transport,ENOT,Axle Weight Technology Ltd,A032268,30/06/2022,1424930,3771.00,General Repairs
North West Leicestershire District Council,31UH,Property Services,Property Commercial Lettings,PROPCL,Coalville Cleaning Services,A003037,30/06/2022,1425024,417.08,Contract Cleaning
North West Leicestershire District Council,31UH,Street Management,Environment Parks,ENOP,Public Sector Software Ltd,A029902,30/06/2022,1425348,6946.00,Computer Software Maintenance
North West Leicestershire District Council,31UH,Street Management,Environment Parks,ENOP,Public Sector Software Ltd,A029902,30/06/2022,1425349,6946.00,Computer Software Maintenance
North West Leicestershire District Council,31UH,Street Management,Environment Parks,ENOP,CLB Cleanequip Limited,A045561,30/06/2022,1425492,325.00,Operational Purchases
North West Leicestershire District Council,31UH,Neighbourhoods & Communities,N & C Community Safety,NACCS,Robert Lewis Signs Ltd,A028686,30/06/2022,1425566,1245.00,Community Safety
North West Leicestershire District Council,31UH,Street Management,Environment - Street Scene,ESS,Coalville Cleaning Services,A003037,30/06/2022,1425569,292.95,Contract Cleaning
North West Leicestershire District Council,31UH,Housing Repairs,HRA Housing Repairs & Maintenance,HRAHRM,Oneserve Ltd,A041321,30/06/2022,1425580,5000.00,Computing
North West Leicestershire District Council,31UH,Communications,Corporate - Customer Services,CS,Quadient UK Ltd,A000079,30/06/2022,1425583,2566.87,Equipment Operating Leases
North West Leicestershire District Council,31UH,Economic Development,Business Focus Group,BFG,Tetra Tech Limited,A046837,30/06/2022,1425586,850.00,Town Centre & Area Regeneration - Initia
North West Leicestershire District Council,31UH,Street Management,Environment Transport,ENOT,J F Lloyd & Sons,A000991,30/06/2022,1425595,260.00,Hire Of Operational Equipment
North West Leicestershire District Council,31UH,Street Management,Environment Waste Management,ENOWM,PermiServ Limited,A046885,30/06/2022,1425607,1310.64,Publicity & Promotion
North West Leicestershire District Council,31UH,Economic Development,Business Focus Group,BFG,Tetra Tech Limited,A046837,30/06/2022,1425612,1500.00,Legal & Professional Services
North West Leicestershire District Council,31UH,Leisure & Culture,Cultural Services Arts & Events,CULTEV,The National Forest Company,A027538,30/06/2022,1425622,9000.00,National Forest & Beyond Partnership
North West Leicestershire District Council,31UH,Planning & Development,Environment - Development Control,EDC,Zurich Municipal,A001835,30/06/2022,1425623,448.00,River Mease Expenditure
North West Leicestershire District Council,31UH,Planning & Development,Environment - Development Control,EDC,The Oyster Partnership Ltd,A032796,30/06/2022,1425627,2047.50,External Legal Fees & Advice
North West Leicestershire District Council,31UH,Street Management,Environment Transport,ENOT,Excel Trucks,A047371,30/06/2022,1425631,4085.00,Hire Of Transport
North West Leicestershire District Council,31UH,Leisure & Culture,Sport & Physical Activity,SPA,Algeco UK Limited,A005413,30/06/2022,1425662,505.72,Temporary Accomodation and secure Storage
North West Leicestershire District Council,31UH,Street Management,Environment Transport,ENOT,Lee Wells Autobodies Ltd,A031849,30/06/2022,1425672,280.00,Vehicle Parts and Maintenance
North West Leicestershire District Council,31UH,Street Management,Environment Transport,ENOT,Mertrux Ltd,A035291,30/06/2022,1425686,265.88,Vehicle Parts and Maintenance
North West Leicestershire District Council,31UH,Property Services,Property Facilities Management,PROPFM,TECSERV UK LIMITED,A028261,30/06/2022,1425691,297.72,Fire Precaution Appliances
North West Leicestershire District Council,31UH,Finance,Financial Planning,FINPLA,Total Mobile,A025004,30/06/2022,1425698,71373.00,Computer Development
North West Leicestershire District Council,31UH,Finance,Financial Planning,FINPLA,Capita Business Services Ltd,A002968,08/06/2022,1424341,650.00,Revs & Bens expenditure funded by grants
North West Leicestershire District Council,31UH,Street Management,Environment - Street Scene,ESS,Coalville Cleaning Services,A003037,08/06/2022,1424504,334.80,Contract Cleaning
North West Leicestershire District Council,31UH,Leisure & Culture,Cultural Services Arts & Events,CULTEV,UKLoos.com,A036990,08/06/2022,1424699,1160.00,Proms/Picnic in the Park
North West Leicestershire District Council,31UH,Property Services,Property Commercial Lettings,PROPCL,Fire Proof Ltd,A039911,08/06/2022,1424753,328.00,Alt & Mtce-Fixed Plant
North West Leicestershire District Council,31UH,Property Services,Property Facilities Management,PROPFM,Mewies Engineering Consultants Ltd,A043524,08/06/2022,1424826,2275.00,Consultants Fees
North West Leicestershire District Council,31UH,Street Management,Environment - Street Scene,ESS,Enviro Technology Services Plc,A018437,08/06/2022,1424836,12175.00,Air Quality Strategy
North West Leicestershire District Council,31UH,Street Management,Environment - Street Scene,ESS,ICCM,A028279,08/06/2022,1424842,455.00,Subscriptions
North West Leicestershire District Council,31UH,Property Services,Property Commercial Lettings,PROPCL,Readings Property Group Ltd,A045486,08/06/2022,1424847,900.00,Legal & Professional Services
North West Leicestershire District Council,31UH,Neighbourhoods & Communities,N & C Community Safety,NACCS,exi,A045557,08/06/2022,1424852,2062.50,CCtv expenditure
North West Leicestershire District Council,31UH,Housing,HRA Housing Management,HRAHM,Voluntary Action Leicestershire,A038706,08/06/2022,1424856,550.00,Training Expenses
North West Leicestershire District Council,31UH,Property Services,Property Facilities Management,PROPFM,Lift & Engineering Services Ltd,A042320,08/06/2022,1424859,562.77,General Repairs
North West Leicestershire District Council,31UH,Street Management,Environment Waste Management,ENOWM,Cromwell Polythene Ltd,A047419,08/06/2022,1424860,923.75,Operational Purchases
North West Leicestershire District Council,31UH,Property Services,Property Facilities Management,PROPFM,Shredpro,A040520,08/06/2022,1424862,583.24,Recycling Initiatives
North West Leicestershire District Council,31UH,Corporate Director,Human Resources,HR,Totaljobs Group Ltd,A040485,08/06/2022,1424865,420.80,Employee Advertising
North West Leicestershire District Council,31UH,Street Management,Environment Transport,ENOT,EPT Services,A039764,08/06/2022,1424866,832.00,Protective Clothing
North West Leicestershire District Council,31UH,Street Management,Environment Transport,ENOT,Paynes Garages Ltd,A046151,08/06/2022,1424868,721.90,Repairs - Parts
North West Leicestershire District Council,31UH,Street Management,Environment Transport,ENOT,Mobile Hydraulics Ltd,A001131,08/06/2022,1424872,1196.57,Vehicle Parts and Maintenance
North West Leicestershire District Council,31UH,Street Management,Environment Transport,ENOT,HGV Direct Ltd,A046956,08/06/2022,1424881,872.68,Vehicle Parts and Maintenance
North West Leicestershire District Council,31UH,Street Management,Environment Transport,ENOT,Ford Motor Company T/A Parts Plus,A045765,08/06/2022,1424884,327.87,Vehicle Parts and Maintenance
North West Leicestershire District Council,31UH,Street Management,Environment Transport,ENOT,Enterprise Flex-E-Rent,A046516,08/06/2022,1424890,1091.71,Hire Of Transport
North West Leicestershire District Council,31UH,Street Management,Environment Transport,ENOT,FAROL Limited,A041905,08/06/2022,1424891,274.44,Operational Purchases
North West Leicestershire District Council,31UH,Chief Exec,Chief Executive,CHEX,exi,A045557,08/06/2022,1424892,9156.53,CCtv expenditure
North West Leicestershire District Council,31UH,Chief Exec,Chief Executive,CHEX,Sable Leigh Consultancy Ltd T/A SLC Rail,A042727,08/06/2022,1424894,1250.00,Consultants Fees
North West Leicestershire District Council,31UH,Chief Exec,Chief Executive,CHEX,exi,A045557,08/06/2022,1424895,4225.00,Advertising
North West Leicestershire District Council,31UH,Street Management,Environment Transport,ENOT,Watling JCB Ltd,A032114,08/06/2022,1424925,848.00,Vehicle Parts and Maintenance
North West Leicestershire District Council,31UH,Street Management,Environment Transport,ENOT,JB Tool Hire Ltd,A011490,22/06/2022,1424855,1260.00,Hire Of Transport
North West Leicestershire District Council,31UH,Information Technology,ICT Services,ICT,NB Data Ltd,A033802,22/06/2022,1425077,524.80,Operational Equipment
North West Leicestershire District Council,31UH,Property Services,Property Facilities Management,PROPFM,T Denman & Sons Ltd,A030887,22/06/2022,1425106,3045.00,General Repairs
North West Leicestershire District Council,31UH,Economic Development,Business Focus Group,BFG,East Midlands Chamber,A040473,22/06/2022,1425252,1590.00,Subscriptions
North West Leicestershire District Council,31UH,Housing,HRA Housing Management,HRAHM,Castle Surveys Ltd,A045260,22/06/2022,1425254,2330.00,Legal & Professional Services
North West Leicestershire District Council,31UH,Planning & Development,Environment - Development Control,EDC,Ilex Tree Services,A046556,22/06/2022,1425259,1449.20,External Legal Fees & Advice
North West Leicestershire District Council,31UH,Planning & Development,Environment - Development Control,EDC,Rob Thompson Urbanism Limited,A045846,22/06/2022,1425260,4006.35,Consultants Fees
North West Leicestershire District Council,31UH,Planning & Development,Environment - Development Control,EDC,Rob Thompson Urbanism Limited,A045846,22/06/2022,1425261,3262.50,Consultants Fees
North West Leicestershire District Council,31UH,Leisure & Culture,Cultural Services Arts & Events,CULTEV,BE Furniture Ltd t/a BE Event Hire,A015349,22/06/2022,1425262,518.60,Proms/Picnic in the Park
North West Leicestershire District Council,31UH,Property Services,Property Facilities Management,PROPFM,Second Element Ltd,A046693,22/06/2022,1425276,815.00,Service Contracts - Premises costs
North West Leicestershire District Council,31UH,Planning & Development,Environment - Development Control,EDC,The Oyster Partnership Ltd,A032796,22/06/2022,1425282,1111.50,External Legal Fees & Advice
North West Leicestershire District Council,31UH,Property Services,Property Facilities Management,PROPFM,John Merison BMC Ltd,A001092,22/06/2022,1425285,4153.50,General Repairs
North West Leicestershire District Council,31UH,Planning & Development,Environment - Development Control,EDC,RAS Town Planning Services,A045293,22/06/2022,1425295,3354.00,External Legal Fees & Advice
North West Leicestershire District Council,31UH,Neighbourhoods & Communities,N & C Community Safety,NACCS,Broadland Guarding Services Ltd,A042635,22/06/2022,1425296,2941.68,Service Contracts
North West Leicestershire District Council,31UH,Environmental Health,Environmental Health & Licensing,EEHL,Eville And Jones Limited,A033670,22/06/2022,1425297,3896.25,Vet Inspection
North West Leicestershire District Council,31UH,Planning & Development,Environment - Development Control,EDC,Wildwood Forestry,A046478,22/06/2022,1425299,2616.95,River Mease Expenditure
North West Leicestershire District Council,31UH,Property Services,Property Facilities Management,PROPFM,Coalville Cleaning Services,A003037,22/06/2022,1425300,1083.72,Contract Cleaning
North West Leicestershire District Council,31UH,Street Management,Environment Transport,ENOT,J F Lloyd & Sons,A000991,22/06/2022,1425302,260.00,Hire Of Operational Equipment
North West Leicestershire District Council,31UH,Property Services,Property Commercial Lettings,PROPCL,Coalville Cleaning Services,A003037,22/06/2022,1425311,862.05,Contract Cleaning
North West Leicestershire District Council,31UH,Neighbourhoods & Communities,N & C Community Safety,NACCS,ITUS Security Solutions Ltd,A047496,22/06/2022,1425320,1218.00,Service Contracts
North West Leicestershire District Council,31UH,Street Management,Environment Waste Management,ENOWM,ESE World Limited,A001253,22/06/2022,1425345,262.33,General Materials
North West Leicestershire District Council,31UH,Property Services,Property Commercial Lettings,PROPCL,John Merison BMC Ltd,A001092,22/06/2022,1425355,3491.79,General Repairs
North West Leicestershire District Council,31UH,Corporate Director,Human Resources,HR,Totaljobs Group Ltd,A040485,22/06/2022,1425368,344.70,Employee Advertising
North West Leicestershire District Council,31UH,Street Management,Environment Transport,ENOT,Enterprise Rent-A-Car UK Ltd,A046419,22/06/2022,1425372,762.12,Hire Of Transport
North West Leicestershire District Council,31UH,Street Management,Environment Transport,ENOT,S & B Tyres Limited,A034071,22/06/2022,1425378,860.00,Vehicle Parts and Maintenance
North West Leicestershire District Council,31UH,Street Management,Environment Transport,ENOT,Watling JCB Ltd,A032114,22/06/2022,1425385,1825.00,Vehicle Parts and Maintenance
North West Leicestershire District Council,31UH,Housing Repairs,HRA Housing Repairs & Maintenance,HRAHRM,Alliance Contracting Solutions Ltd,A043325,15/06/2022,1422461,29616.33,General repairs
North West Leicestershire District Council,31UH,Housing Repairs,HRA Housing Repairs & Maintenance,HRAHRM,Alliance Contracting Solutions Ltd,A043325,15/06/2022,1423125,12409.20,General repairs
North West Leicestershire District Council,31UH,Housing Repairs,HRA Housing Repairs & Maintenance,HRAHRM,Alliance Contracting Solutions Ltd,A043325,15/06/2022,1424738,24729.44,General repairs
North West Leicestershire District Council,31UH,Property Services,Property Commercial Lettings,PROPCL,John Merison BMC Ltd,A001092,15/06/2022,1424742,483.25,General Repairs
North West Leicestershire District Council,31UH,Leisure & Culture,Cultural Services Arts & Events,CULTEV,Moira Furnace Museum Trust Ltd,A001136,15/06/2022,1424835,18800.00,Grants
North West Leicestershire District Council,31UH,Planning & Development,Environment - Development Control,EDC,Charnwood Borough Council,A000323,15/06/2022,1424838,320380.84,Payments To Contractor
North West Leicestershire District Council,31UH,Leisure & Culture,Cultural Services Arts & Events,CULTEV,Steve King Big Band,A047246,15/06/2022,1424947,1320.00,Proms/Picnic in the Park
North West Leicestershire District Council,31UH,Leisure & Culture,Cultural Services Arts & Events,CULTEV,Childhood Dreams Parties,A047175,15/06/2022,1424948,600.00,Proms/Picnic in the Park
North West Leicestershire District Council,31UH,Chief Exec,Chief Executive,CHEX,Pollards Fruit & Veg,A045637,15/06/2022,1424949,320.00,Fruit Basket Delivery
North West Leicestershire District Council,31UH,Property Services,Property Facilities Management,PROPFM,Regarde Security Ltd,A013049,15/06/2022,1425006,620.80,Building Security
North West Leicestershire District Council,31UH,Property Services,Property Facilities Management,PROPFM,Regarde Security Ltd,A013049,15/06/2022,1425007,672.00,Building Security
North West Leicestershire District Council,31UH,Property Services,Property Facilities Management,PROPFM,Regarde Security Ltd,A013049,15/06/2022,1425012,310.40,Building Security
North West Leicestershire District Council,31UH,Property Services,Property Facilities Management,PROPFM,Regarde Security Ltd,A013049,15/06/2022,1425013,1003.20,Building Security
North West Leicestershire District Council,31UH,Legal & Democratic,Legal Services,LDLS,James Andrews Recruitment Solutions,A036290,15/06/2022,1425025,630.00,Agency Staff
North West Leicestershire District Council,31UH,Housing,HRA Housing Management,HRAHM,James Andrews Recruitment Solutions,A036290,15/06/2022,1425026,729.61,Agency Staff
North West Leicestershire District Council,31UH,Housing Repairs,HRA Housing Repairs & Maintenance,HRAHRM,City Electrical Factors Ltd,A003893,15/06/2022,1425030,1095.00,Operational Equipment
North West Leicestershire District Council,31UH,Corporate Director,Human Resources,HR,Wider Plan Ltd,A043948,15/06/2022,1425036,1008.00,Staff Benefit Scheme
North West Leicestershire District Council,31UH,Environmental Health,Environmental Health & Licensing,EEHL,Tennals Pest Control,A045705,15/06/2022,1425053,1807.00,External Contractor Payments
North West Leicestershire District Council,31UH,Housing Repairs,HRA Housing Repairs & Maintenance,HRAHRM,Alliance Contracting Solutions Ltd,A043325,15/06/2022,1425062,3930.00,General repairs
North West Leicestershire District Council,31UH,Street Management,Environment Transport,ENOT,Second 2 None,A031408,15/06/2022,1425076,1300.00,Washing Down of Vehicles
North West Leicestershire District Council,31UH,Leisure & Culture,Sport & Physical Activity,SPA,Measham Leisure Centre,A027454,15/06/2022,1425081,1304.86,Measham LC Lifestyle DD
North West Leicestershire District Council,31UH,Property Services,Property Facilities Management,PROPFM,exi,A045557,15/06/2022,1425083,3720.00,Asset Protection
North West Leicestershire District Council,31UH,Housing Repairs,HRA Housing Repairs & Maintenance,HRAHRM,Dalrod UK Ltd,A046051,15/06/2022,1425086,1931.21,Sewerage & Environmental
North West Leicestershire District Council,31UH,Corporate Director,Corporate Director,CORDI,exi,A045557,15/06/2022,1425087,4987.50,Contract Payments (Other) Ext
North West Leicestershire District Council,31UH,Leisure & Culture,Cultural Services Arts & Events,CULTEV,Leicestershire Co-op Band,A027523,15/06/2022,1425102,500.00,Proms/Picnic in the Park
North West Leicestershire District Council,31UH,Leisure & Culture,Cultural Services Arts & Events,CULTEV,Monteray Roadshow,A046049,15/06/2022,1425112,4936.00,Proms/Picnic in the Park
North West Leicestershire District Council,31UH,Street Management,Environment Parks,ENOP,Rigby Taylor Limited,A001392,30/06/2022,1425103,479.10,Operational Purchases
North West Leicestershire District Council,31UH,Street Management,Environment Parks,ENOP,George Browns Ltd,A044771,30/06/2022,1425227,874.00,Operational Purchases
North West Leicestershire District Council,31UH,Street Management,Environment Parks,ENOP,L Neal Tree Surgery,A046372,30/06/2022,1425346,2070.00,External Contractor Payments
North West Leicestershire District Council,31UH,Planning & Development,Environment - Development Control,EDC,Jonathan Gaynor Planning and Enforcement Services,A047213,30/06/2022,1425564,1575.00,External Legal Fees & Advice
North West Leicestershire District Council,31UH,Housing,HRA Housing Management,HRAHM,Aareon UK Ltd,A045197,30/06/2022,1425572,870.00,Contract Payments (Other) Ext
North West Leicestershire District Council,31UH,Housing,HRA Housing Management,HRAHM,Aareon UK Ltd,A045197,30/06/2022,1425575,975.00,Contract Payments (Other) Ext
North West Leicestershire District Council,31UH,Housing,HRA Housing Management,HRAHM,Aareon UK Ltd,A045197,30/06/2022,1425577,870.00,Contract Payments (Other) Ext
North West Leicestershire District Council,31UH,Housing,HRA Housing Management,HRAHM,Aareon UK Ltd,A045197,30/06/2022,1425578,870.00,Contract Payments (Other) Ext
North West Leicestershire District Council,31UH,Housing,HRA Housing Management,HRAHM,Aareon UK Ltd,A045197,30/06/2022,1425579,2610.00,Contract Payments (Other) Ext
North West Leicestershire District Council,31UH,Communications,Corporate - Customer Services,CS,Quadient UK Ltd,A000079,30/06/2022,1425582,2224.20,Postages
North West Leicestershire District Council,31UH,Economic Development,Business Focus Group,BFG,Leicestershire County Council,A027423,30/06/2022,1425584,1450.00,Legal & Professional Services
North West Leicestershire District Council,31UH,Legal & Democratic,Legal Services,LDLS,James Andrews Recruitment Solutions,A036290,30/06/2022,1425587,393.75,Agency Staff
North West Leicestershire District Council,31UH,Housing,HRA Housing Management,HRAHM,James Andrews Recruitment Solutions,A036290,30/06/2022,1425588,1101.86,Agency Staff
North West Leicestershire District Council,31UH,Street Management,Environment Transport,ENOT,Mertrux Ltd,A035291,30/06/2022,1425676,266.99,Vehicle Parts and Maintenance
